Cogmind - Beta 10.2 @@@ ROGUE MODE // 2021.03.08 @ 04:55:41 Player: timonkot131 Result: Destroyed by G-73 Enforcer with Phase Gun Performance ------------- Evolutions (8) 4000 Regions Visited (10) 2000 Robots Destroyed (89) 445 Value Destroyed (4072) 4072 Prototype IDs (10) 200 Alien Tech Used (0) 0 Bonus (500) 500 TOTAL SCORE: 11217 Bonus ------- Scanned by Researcher 500 Cogmind --------- Core Integrity 0/1450 Matter 242/300 Energy 668/700 System Corruption 21% Temperature Cool (0) Movement Core (100) Ox1 Location -2/Testing Parts ------- > --- POWER (2) -------- (None) > --- PROPULSION (6) --- (None) > --- UTILITY (12) ----- Improved Energy Well Advanced Signal Interpreter > --- WEAPON (3) ------- (None) > --- INVENTORY (4) ---- Light Particle Reactor Biometal Leg Gamma Rifle Enhanced Nova Cannon Peak State ------------ > --- POWER ------------ Light Quantum Reactor Light Quantum Reactor > --- PROPULSION ------- Heavy Treads Heavy Treads Biometal Heavy Treads > --- UTILITY ---------- Advanced Coolant Injector Large Storage Unit Large Storage Unit Large Storage Unit Improved Energy Well Advanced Signal Interpreter Advanced Target Analyzer Improved Core Analyzer Improved Core Shielding Improved Focal Shield Advanced Shield Generator Improved Remote Force Field > --- WEAPON ----------- Gamma Rifle Gamma Rifle Enhanced Nova Cannon > --- INVENTORY -------- Light Fission Core Particle Reactor Light Particle Reactor Medium Treads Medium Treads Medium Treads Heavy Siege Treads Advanced Heavy Siege Treads Myomer Leg Biometal Leg Improved Cooling System Advanced Coolant Injector Improved Stasis Canceller Gamma Rifle Gamma Rifle Gamma Rifle Gamma Rifle Linear Accelerator Mini Smartbomb Launcher Chainsword [Rating: 160] Favorites ----------- Power Reinforced Deuterium Engine Engine Reinforced Deuterium Engine Power Core Light Nuclear Core Reactor Light Quantum Reactor Propulsion Heavy Treads Treads Heavy Treads Leg Myomer Leg Wheel Compact Wheel Utility Large Storage Unit Device Advanced Coolant Injector Storage Large Storage Unit Processor Advanced Signal Interpreter Protection Improved Core Shielding Weapon Gamma Rifle Energy Gun Gamma Rifle Energy Cannon Nova Cannon Ballistic Gun Heavy Machine Gun Launcher Grenade Launcher Impact Weapon Hammer Slashing Weapon Chainsword Build | -11 -10 -9 -8 -7 -6 -5 -4 -3 -2 -2 ------- Run | Scr Mat Mat Mat Fac Fac Fac Fac Res Res Tes Slots Evolved 16 | . . 2 2 2 2 2 2 2 2 . Power 1 | . . . . 1 . . . . . . Propulsion 4 | . . . . 1 1 1 . . 1 . Utility 10 | . . 2 2 . 1 . 2 2 1 . Weapon 1 | . . . . . . 1 . . . . Parts Attached 197 | 7 10 17 16 4 20 19 24 25 21 34 Power 20 | 1 . 2 2 2 4 1 2 1 3 2 Engine 9 | 1 . 2 1 2 3 . . . . . Core 5 | . . . 1 . 1 1 . . 1 1 Reactor 6 | . . . . . . . 2 1 2 1 Propulsion 38 | 3 2 1 4 2 3 5 5 6 2 5 Treads 30 | 1 . 1 2 2 2 5 5 5 2 5 Leg 1 | . . . . . . . . 1 . . Wheel 7 | 2 2 . 2 . 1 . . . . . Hover . | . . . . . . . . . . . Flight . | . . . . . . . . . . . Utility 56 | 1 2 5 6 . 3 4 10 6 5 14 Device 32 | . . 4 2 . . 1 9 2 2 12 Storage 10 | 1 . 1 3 . . 2 . 2 . 1 Processor 5 | . 1 . 1 . . 1 1 . 1 . Hackware . | . . . . . . . . . . . Protection 9 | . 1 . . . 3 . . 2 2 1 Artifact . | . . . . . . . . . . . Weapon 83 | 2 6 9 4 . 10 9 7 12 11 13 Energy Gun 38 | 2 3 5 2 . 6 3 2 3 5 7 Energy Cannon 11 | . . . . . . . 2 4 4 1 Ballistic Gun 8 | . 2 2 . . 1 2 1 . . . Ballistic Cannon . | . . . . . . . . . . . Launcher 6 | . . 1 1 . . 2 1 . . 1 Special Weapon . | . . . . . . . . . . . Impact Weapon 2 | . 1 1 . . . . . . . . Slashing Weapon 18 | . . . 1 . 3 2 1 5 2 4 Piercing Weapon . | . . . . . . . . . . . Special Melee Weapon . | . . . . . . . . . . . Unidentified Prototypes 10 | . . 1 . . . 1 1 2 . 5 Parts Lost 71 | . 2 10 3 1 2 4 9 2 6 32 Power 9 | . . 2 . . 1 2 . . . 4 Propulsion 17 | . . 1 1 1 . 1 4 1 . 8 Utility 22 | . . 2 1 . 1 . 1 1 3 13 Weapon 23 | . 2 5 1 . . 1 4 . 3 7 Highest Loss Streak 30 | . 2 9 2 1 2 2 9 1 6 30 Average Slot Usage (%) 88 | . 90 86 96 97 97 94 85 86 75 78 Engine 5 | . 14 10 5 9 11 9 5 . . . Core 1 | . . . 3 4 1 . . . 2 . Reactor 2 | . . . . . . . 4 9 5 7 Treads 14 | . . 5 12 20 22 19 16 13 13 12 Wheel 4 | . 28 15 4 . 1 4 . . . . Device 10 | . . 11 15 7 4 3 12 15 11 12 Storage 16 | . 14 11 19 23 20 17 15 13 13 16 Processor 11 | . 1 11 17 15 13 11 9 9 9 12 Protection 4 | . 4 . . . 6 6 5 9 6 3 Energy Gun 9 | . 18 12 16 15 8 8 4 2 8 9 Energy Cannon 1 | . . . . . . . 4 7 2 . Ballistic Gun 1 | . 8 5 . . 1 2 2 . . . Slashing Weapon 1 | . . . . . 2 4 2 2 1 1 Naked Turns . | . . . . . . . . . . . Heaviest Build 142 | 13 15 27 53 58 85 95 106 135 142 132 Greatest Support 225 | 20 32 32 56 79 114 129 160 160 215 225 Greatest Overweight (x) 11 | . . 1 11 1 3 3 1 1 . 1 Average Overweight (x) . | . . . . . . 2 . . . . Largest Inventory Capacity 22 | 6 6 10 20 20 20 22 22 22 22 22 Average Capacity 17 | 5 6 7 13 20 20 20 22 21 22 21 Most Carried 22 | 6 6 8 17 20 20 22 22 22 22 22 Average Carried 16 | 3 5 6 11 18 19 19 20 21 21 20 Final Capacity 22 | 6 6 8 20 20 20 22 22 22 22 4 Final Carried 22 | 6 6 8 17 20 20 22 22 22 22 4 Class Distribution -------------------- 38% | Hauler-Mutant 28% | Scavenger-Mutant 14% | Mutant 6% | Hauler-Tank 5% | Hauler-Skirmisher 4% | Scavenger-Gunner Dominant Class ---------------- Mutant | -10/Materials Scavenger-Mutant | -9/Materials Scavenger-Mutant | -8/Materials Hauler-Mutant | -7/Factory Scavenger-Mutant | -6/Factory Hauler-Mutant | -5/Factory Hauler-Mutant | -4/Factory Hauler-Mutant | -3/Research Hauler-Mutant | -2/Research Hauler-Mutant | -2/Testing Resources | -11 -10 -9 -8 -7 -6 -5 -4 -3 -2 -2 ----------- Run | Scr Mat Mat Mat Fac Fac Fac Fac Res Res Tes Matter Collected 2240 | 209 100 220 250 35 200 150 237 277 257 305 Remotely . | . . . . . . . . . . . Salvage Created 4842 | . 100 504 611 95 397 213 430 793 619 1080 Parts 291 | . 11 34 30 9 35 13 27 41 43 48 Haulers Intercepted 4 | . . 3 1 . . . . . . . Recyclers Shooed 2 | . . . . . . . 1 . 1 . Parts Field Recycled . | . . . . . . . . . . . Retrieved Matter . | . . . . . . . . . . . Parts Self-Destructed . | . . . . . . . . . . . Prevented . | . . . . . . . . . . . Kills | -11 -10 -9 -8 -7 -6 -5 -4 -3 -2 -2 ------- Run | Scr Mat Mat Mat Fac Fac Fac Fac Res Res Tes Combat Hostiles Destroyed 63 | . 6 5 9 1 4 4 7 10 5 12 Melee 3 | . . . 2 . . 1 . . . . Guns 32 | . 6 5 6 1 2 1 4 2 2 3 Cannons 14 | . . . . . . . 1 7 3 3 AOE 6 | . . . . . 1 1 2 . . 2 Classes Destroyed 15 | . 2 5 . 2 2 1 . . . 3 Worker 2 | . . 1 . . 1 . . . . . Builder 9 | . . 1 1 . 2 . . . 2 3 Hauler 4 | . . 3 1 . . . . . . . Recycler 5 | . . 1 1 . . . 1 . 1 1 Operator 5 | . . . . 1 2 . 2 . . . Watcher 1 | . 1 . . . . . . . . . Swarmer 10 | . 6 . . . . . 4 . . . Grunt 20 | . . 5 9 . . . . 4 1 1 Brawler 1 | . . . . . . . . . . 1 Duelist 1 | . . . . . . . . . . 1 Sentry 8 | . . . . 1 2 1 1 1 2 . Hunter 7 | . . . . . 1 . 2 . . 4 Programmer 13 | . . . . . . 3 . 5 2 3 Behemoth 1 | . . . . . 1 . . . . . Striker 2 | . . . . . . . . . . 2 Best Kill Streak 5 | . 3 3 4 1 3 2 5 3 4 4 Combat Bots Only 4 | . 3 2 3 1 1 2 4 3 3 4 Max Kills in Single Turn 2 | . 1 2 2 1 2 1 2 1 1 2 Gunslinging . | . . . . . . . . . . . Exploded 2 | . . . . . 1 1 2 . . 2 Melee 1 | . . . 1 . . 1 . . . . Uniques/NPCs Destroyed . | . . . . . . . . . . . Combat | -11 -10 -9 -8 -7 -6 -5 -4 -3 -2 -2 -------- Run | Scr Mat Mat Mat Fac Fac Fac Fac Res Res Tes Damage Taken 15133 | . 208 1004 604 140 987 1177 1018 2040 1453 6502 Core 2204 | . 17 258 108 4 113 183 34 15 91 1381 Absorbed by Shields 621 | . . . 105 59 149 . 39 . . 269 Reduced by Siege Mode 60 | . . . . . . . . . . 60 Core Remaining (%) 85 | 100 93 35 80 99 86 81 97 98 . . Volleys Fired 264 | 2 19 48 31 6 17 15 26 35 20 45 Largest 3 | 1 2 2 2 2 2 3 3 3 3 3 Hottest 307 | 50 100 85 90 90 120 150 218 307 301 270 Shots Fired 542 | 2 36 75 43 12 31 36 49 99 54 105 Gun 404 | 2 36 71 41 12 31 36 30 30 34 81 Cannon 126 | . . . . . . . 18 69 20 19 Launcher 12 | . . 4 2 . . . 1 . . 5 Special . | . . . . . . . . . . . Kinetic 72 | . 8 41 . . 1 13 9 . . . Thermal 142 | 2 28 6 . . . . 13 54 20 19 Explosive 12 | . . 4 2 . . . 1 . . 5 Electromagnetic 316 | . . 24 41 12 30 23 26 45 34 81 Robot Hit Streak 31 | 2 6 17 22 3 11 8 17 23 31 11 Robot Miss Streak 8 | . 2 3 2 3 2 2 8 4 3 3 Penetration Max . | . . . . . . . . . . . Secondary Targets . | . . . . . . . . . . . Shots Hit Robots 414 | 2 19 61 42 8 27 33 31 72 40 79 Core Hits 212 | . 7 26 29 5 21 7 20 26 22 49 Critical Hits 15 | . . . 2 1 . . 2 3 1 6 Critical Kills 7 | . . . 1 1 . . 1 1 1 2 Critical Parts Destroyed 7 | . . . 1 . . . 1 2 . 3 Melee Attacks 135 | . 1 12 5 . 28 29 8 27 13 12 Impact 13 | . 1 12 . . . . . . . . Slashing 122 | . . . 5 . 28 29 8 27 13 12 Piercing . | . . . . . . . . . . . Sneak Attacks 4 | . . 1 . . . . . . 1 2 Combat Hostiles . | . . . . . . . . . . . Follow-up Attacks . | . . . . . . . . . . . Damage Inflicted 11616 | 24 219 844 1108 92 745 515 1042 2259 1184 3584 Guns 4845 | 24 219 595 609 92 375 361 374 570 562 1064 Cannons 3321 | . . . . . . . 410 1660 495 756 Explosions 2308 | . . 60 330 . 163 . 258 . . 1497 Melee 1081 | . . 187 160 . 195 139 . 29 127 244 Ramming 61 | . . 2 9 . 12 15 . . . 23 Kinetic 687 | . 17 298 . . 49 217 106 . . . Thermal 3640 | 24 202 32 330 . 52 . 159 1590 495 756 Explosive 1815 | . . 60 . . . . 258 . . 1497 Electromagnetic 4332 | . . 265 609 92 437 144 519 640 562 1064 Impact 187 | . . 187 . . . . . . . . Slashing 894 | . . . 160 . 195 139 . 29 127 244 Piercing . | . . . . . . . . . . . Highest Corruption 21 | . . . 3 . 3 5 . 13 11 21 Average Corruption 8 | . . . 2 . 2 2 . 11 9 14 Corruption Purged . | . . . . . . . . . . . Effects 137 | . . . . . 6 13 . 41 14 63 Message Errors 18 | . . . . . 2 5 . 2 2 7 Matter Fused 19 | . . . . . 1 1 . 4 . 13 Heat Flow Errors 10 | . . . . . 2 1 . 2 1 4 Energy Discharges 16 | . . . . . 1 3 . 3 5 4 Parts Rejected 1 | . . . . . . . . 1 . . Data Loss (minor) 10 | . . . . . . 2 . 3 . 5 Data Loss (major) 5 | . . . . . . . . 3 1 1 Misfires 1 | . . . . . . . . . . 1 Misdirections 9 | . . . . . . . . 2 . 7 Targeting Errors 43 | . . . . . . 1 . 17 5 20 Weapon Failures 5 | . . . . . . . . 4 . 1 Overload Shots . | . . . . . . . . . . . Overflow Damage 420 | . . 14 29 . 18 10 37 89 . 223 Projectiles 169 | . . . . . . . 15 89 . 65 Explosions 122 | . . . 29 . . . 22 . . 71 Melee 129 | . . 14 . . 18 10 . . . 87 Knockbacks 1 | . . 1 . . . . . . . . Impact 1 | . . 1 . . . . . . . . Kinetic . | . . . . . . . . . . . Secondary . | . . . . . . . . . . . Self-Inflicted Damage 391 | . . 1 68 . 61 7 . . . 254 Shots 8 | . . . 3 . 1 . . . . 4 Rammed 7 | . . 1 1 . 1 1 . . . 3 Targets Rammed 7 | . . 1 1 . 1 1 . . . 3 Kicked . | . . . . . . . . . . . Crushed . | . . . . . . . . . . . Highest Temperature 388 | . 160 36 72 89 355 304 172 285 198 388 Average Temperature 92 | . 58 12 21 38 88 107 66 116 99 128 Received Heat Transfer 1608 | . . 480 295 36 125 42 9 201 45 375 Effects 9 | . . . . . 3 4 . . . 2 Shutdowns 3 | . . . . . 1 . . . . 2 Energy Bleed 1 | . . . . . 1 . . . . . Interference 4 | . . . . . . 4 . . . . Short Circuit 1 | . . . . . 1 . . . . . Siege Activations 2 | . . . . . . . . . . 2 Total Turns 26 | . . . . . . . . . . 26 Longest Duration 24 | . . . . . . . . . . 24 Robots Corrupted 8 | . . . 1 . 1 1 . 1 . 4 Combat Hostiles 8 | . . . 1 . 1 1 . 1 . 4 Parts Fried 30 | . . 1 4 . 3 1 3 3 5 10 Impact Corruptions 1 | . . 1 . . . . . . . . Robots Melted . | . . . . . . . . . . . Combat Hostiles . | . . . . . . . . . . . Parts Melted 8 | . 2 . 1 . . . 1 3 . 1 Heat Transferred 3598 | 74 568 75 500 . 50 . 259 1258 370 444 Parts Sabotaged . | . . . . . . . . . . . Parts Stolen . | . . . . . . . . . . . Parts Stripped . | . . . . . . . . . . . Power Chain Reactions 6 | . . . 4 . 2 . . . . . Missiles Intercepted . | . . . . . . . . . . . Alert | -11 -10 -9 -8 -7 -6 -5 -4 -3 -2 -2 ------- Run | Scr Mat Mat Mat Fac Fac Fac Fac Res Res Tes Peak Influence 297 | . 222 187 194 131 267 228 184 273 297 175 Initial 153 | . . 93 29 76 63 137 54 31 153 98 Average 106 | . 131 98 87 114 122 107 38 87 210 119 Maximum Alert Level 1 | . 1 . . . 1 1 . 1 1 . Low Security (%) 88 | 100 63 100 100 100 83 97 100 88 25 100 Level 1 11 | . 36 . . . 16 2 . 11 74 . Level 2 . | . . . . . . . . . . . Level 3 . | . . . . . . . . . . . Level 4 . | . . . . . . . . . . . Level 5 . | . . . . . . . . . . . High Security . | . . . . . . . . . . . Max Security . | . . . . . . . . . . . Squads Dispatched 15 | . . . 2 . 3 1 . 2 . 7 Investigation 1 | . . . . . . . . . . 1 Extermination 4 | . . . . . 1 1 . 1 . 1 Reinforcement 6 | . . . 2 . 2 . . . . 2 Assault . | . . . . . . . . . . . Garrison 4 | . . . . . . . . 1 . 3 Intercept . | . . . . . . . . . . . Construction Impeded 2 | . . . 1 . . . . . . 1 Haulers Reinforced . | . . . . . . . . . . . Stealth | -11 -10 -9 -8 -7 -6 -5 -4 -3 -2 -2 --------- Run | Scr Mat Mat Mat Fac Fac Fac Fac Res Res Tes Distress Signals 4 | . . . 1 . . . . . 3 . Communications Jammed . | . . . . . . . . . . . Distress Signals . | . . . . . . . . . . . Times Spotted 120 | . 10 11 18 2 13 5 8 18 12 23 Peak Tracking Total 10 | . 3 3 5 1 4 2 4 6 6 10 Tactical Retreats 19 | . 2 4 2 . 4 . . 6 1 . Traps | -11 -10 -9 -8 -7 -6 -5 -4 -3 -2 -2 ------- Run | Scr Mat Mat Mat Fac Fac Fac Fac Res Res Tes Traps Triggered 6 | . . . 2 . 2 2 . . . . Indirectly . | . . . . . . . . . . . Trap Hack Attempts . | . . . . . . . . . . . Triggered . | . . . . . . . . . . . Disarmed . | . . . . . . . . . . . Reprogrammed . | . . . . . . . . . . . Reused . | . . . . . . . . . . . Traps Extracted . | . . . . . . . . . . . Installed . | . . . . . . . . . . . Triggered . | . . . . . . . . . . . Machines | -11 -10 -9 -8 -7 -6 -5 -4 -3 -2 -2 ---------- Run | Scr Mat Mat Mat Fac Fac Fac Fac Res Res Tes Machines Disabled 15 | . . 2 1 . 8 . 1 . 1 2 Max in Single Turn 4 | . . 1 1 . 4 . 1 . 1 1 Garrison Access 2 | . . . 1 . 1 . . . . . Machines Sabotaged . | . . . . . . . . . . . Garrisons Compromised . | . . . . . . . . . . . Overloaded Fab Kills . | . . . . . . . . . . . Fab Network Shutdowns . | . . . . . . . . . . . Hacking | -11 -10 -9 -8 -7 -6 -5 -4 -3 -2 -2 --------- Run | Scr Mat Mat Mat Fac Fac Fac Fac Res Res Tes Machines Accessed 22 | . 1 1 4 2 1 3 1 4 1 4 Terminals 14 | . 1 . 2 2 . 2 1 2 1 3 Fabricators . | . . . . . . . . . . . Repair Stations . | . . . . . . . . . . . Recycling Units 2 | . . . 1 . . 1 . . . . Scanalyzers 1 | . . 1 . . . . . . . . Garrison Access 5 | . . . 1 . 1 . . 2 . 1 Total Hacks 35 | . 1 2 9 2 2 4 2 5 1 7 Successful 19 | . 1 2 4 1 1 3 2 2 1 2 Failed 16 | . . . 5 1 1 1 . 3 . 5 Catastrophic 5 | . . . 1 . . . . 3 . 1 Database Lockouts . | . . . . . . . . . . . Manual 4 | . . . 1 . . . 2 . . 1 Terminals 20 | . 1 . 4 2 . 2 2 3 1 5 Fabricators . | . . . . . . . . . . . Repair Stations . | . . . . . . . . . . . Recycling Units 4 | . . . 2 . . 2 . . . . Scanalyzers 2 | . . 2 . . . . . . . . Garrison Access 9 | . . . 3 . 2 . . 2 . 2 Terminal Hacks 13 | . 1 . 2 1 . 2 2 2 1 2 Record 1 | . . . . 1 . . . . . . Robot Analysis 2 | . . . 1 . . 1 . . . . Alert Level 2 | . . . . . . . . 1 . 1 Unreport Threat 1 | . . . . . . . . . . 1 Locate Traps 4 | . . . . . . 1 1 1 1 . Zone Layout 3 | . 1 . 1 . . . 1 . . . Fabricator Hacks . | . . . . . . . . . . . Repair Station Hacks . | . . . . . . . . . . . Recycling Unit Hacks 2 | . . . 1 . . 1 . . . . Report Inventory 2 | . . . 1 . . 1 . . . . Scanalyzer 2 | . . 2 . . . . . . . . Insert Component 1 | . . 1 . . . . . . . . Analyze 1 | . . 1 . . . . . . . . Garrison Access Hacks 2 | . . . 1 . 1 . . . . . Seal Access 2 | . . . 1 . 1 . . . . . Unauthorized Hacks . | . . . . . . . . . . . Terminals . | . . . . . . . . . . . Fabricators . | . . . . . . . . . . . Repair Stations . | . . . . . . . . . . . Recycling Units . | . . . . . . . . . . . Scanalyzers . | . . . . . . . . . . . Garrison Access . | . . . . . . . . . . . Data Cores Recovered 1 | . . . . 1 . . . . . . Used . | . . . . . . . . . . . Hacking Detections 19 | . 1 1 3 2 1 1 1 4 1 4 Full Trace Events 1 | . . . . . . . . . . 1 Feedback Events . | . . . . . . . . . . . Feedback Blocked . | . . . . . . . . . . . Robot Schematics Acquired . | . . . . . . . . . . . Robots Built . | . . . . . . . . . . . Matter . | . . . . . . . . . . . Time . | . . . . . . . . . . . Total Robot Build Rating . | . . . . . . . . . . . Part Schematics Acquired 1 | . . 1 . . . . . . . . Parts Built . | . . . . . . . . . . . Matter . | . . . . . . . . . . . Time . | . . . . . . . . . . . Total Part Build Rating . | . . . . . . . . . . . Parts Repaired . | . . . . . . . . . . . Time . | . . . . . . . . . . . Parts Recycled . | . . . . . . . . . . . Recycled Matter . | . . . . . . . . . . . Retrieved Matter . | . . . . . . . . . . . Retrieved Components . | . . . . . . . . . . . Parts Scanalyzed 1 | . . 1 . . . . . . . . Part Schematics Acquired 1 | . . 1 . . . . . . . . Parts Damaged . | . . . . . . . . . . . Bothacking | -11 -10 -9 -8 -7 -6 -5 -4 -3 -2 -2 ------------ Run | Scr Mat Mat Mat Fac Fac Fac Fac Res Res Tes Used RIF Installer . | . . . . . . . . . . . Robots Hacked . | . . . . . . . . . . . Non-combat . | . . . . . . . . . . . Combat . | . . . . . . . . . . . Robot Hacks Applied . | . . . . . . . . . . . Relay Couplers Released . | . . . . . . . . . . . Robots Rewired . | . . . . . . . . . . . Allies Hacked . | . . . . . . . . . . . Hacks Repelled . | . . . . . . . . . . . Allies | -11 -10 -9 -8 -7 -6 -5 -4 -3 -2 -2 -------- Run | Scr Mat Mat Mat Fac Fac Fac Fac Res Res Tes Total Allies . | . . . . . . . . . . . Largest Group . | . . . . . . . . . . . Highest-Rated Group . | . . . . . . . . . . . Highest-Rated Ally . | . . . . . . . . . . . Total Orders . | . . . . . . . . . . . Ally Attacks . | . . . . . . . . . . . Total Damage . | . . . . . . . . . . . Kills . | . . . . . . . . . . . Allies Corrupted . | . . . . . . . . . . . Allies Melted . | . . . . . . . . . . . Intel | -11 -10 -9 -8 -7 -6 -5 -4 -3 -2 -2 ------- Run | Scr Mat Mat Mat Fac Fac Fac Fac Res Res Tes Robot Analysis Total 2 | . . . 1 . . 1 . . . . Derelict Logs Recovered . | . . . . . . . . . . . Drone Launches . | . . . . . . . . . . . Drone Recoveries . | . . . . . . . . . . . Exploration | -11 -10 -9 -8 -7 -6 -5 -4 -3 -2 -2 ------------- Run | Scr Mat Mat Mat Fac Fac Fac Fac Res Res Tes Turns Passed 6255 | 79 319 655 733 247 778 787 570 789 494 804 Spaces Moved 2966 | 77 267 403 237 129 345 367 239 327 218 357 Core 20 | 18 . . 2 . . . . . . . Treads 1767 | . . . 190 129 237 70 239 327 218 357 Legs . | . . . . . . . . . . . Wheels 1179 | 59 267 403 45 . 108 297 . . . . Hover . | . . . . . . . . . . . Flight . | . . . . . . . . . . . Fastest Speed 50 | 50 80 100 120 160 120 120 160 160 155 152 Average Speed 138 | 72 83 106 160 165 148 135 160 160 158 155 Slowest Speed 600 | 80 100 110 600 180 160 160 180 210 160 180 Overloaded Moves . | . . . . . . . . . . . Propulsion Burnouts . | . . . . . . . . . . . Robots Hopped . | . . . . . . . . . . . Cave-ins Triggered . | . . . . . . . . . . . Exploration Rate (%) 14 | 4 36 26 26 2 7 7 7 9 6 33 Regions Visited 10 Branch Regions 1 Pre-discovered Areas . | . . . . . . . . . . . Known Exits Taken 9 | . 1 1 1 1 1 1 1 1 1 . Unknown Exits Taken 1 | 1 . . . . . . . . . . Scrap Searched . | . . . . . . . . . . . Spaces Dug 102 | . 1 13 . . 17 22 8 22 9 10 Terrain Destroyed 234 | . 1 65 30 . 19 22 22 37 16 22 Melee 88 | . 1 . . . 17 22 8 22 9 9 Projectile 32 | . . . . . . . 4 15 7 6 AOE 114 | . . 65 30 . 2 . 10 . . 7 Terrain Rammed . | . . . . . . . . . . . Walls Destroyed . | . . . . . . . . . . . Machines Disabled . | . . . . . . . . . . . Actions | -11 -10 -9 -8 -7 -6 -5 -4 -3 -2 -2 --------- Run | Scr Mat Mat Mat Fac Fac Fac Fac Res Res Tes Total 4402 | 95 325 538 536 153 537 584 370 475 298 491 Wait 627 | 3 21 43 226 1 105 129 51 21 12 15 Move 2956 | 76 266 402 236 128 344 366 238 326 217 357 Hop . | . . . . . . . . . . . Pick Up 108 | 6 3 8 13 9 11 14 10 20 7 7 Fast Attach 69 | 6 3 11 6 2 2 3 7 8 9 12 Attach 54 | 1 1 3 3 2 5 7 9 6 4 13 Detach 7 | 1 . 1 1 . . 1 3 . . . Swap 74 | . 6 3 7 . 13 9 8 11 8 9 Drop 99 | . 5 6 7 5 11 10 10 21 8 16 Fire 264 | 2 19 48 31 6 17 15 26 35 20 45 Melee 135 | . 1 12 5 . 28 29 8 27 13 12 Ram 4 | . . 1 . . 1 1 . . . 1 Kick . | . . . . . . . . . . . Crush 3 | . . . 1 . . . . . . 2 Escape Stasis 2 | . . . . . . . . . . 2 Rewire . | . . . . . . . . . . . Trap . | . . . . . . . . . . . Miscellaneous . | . . . . . . . . . . . Route ------- -11/Scrapyard -10/Materials -9/Materials -8/Materials -7/Factory -6/Factory -5/Factory -4/Factory -3/Research -2/Research -2/Testing History --------- Turn | Location | Event 22 | -11/Scrapyard | Discovered new exit (range 16) 80 | -11/Scrapyard | Entered Materials 328 | -10/Materials | Build established: Mutant 337 | -10/Materials | Discovered new exit (range 9) 369 | -10/Materials | Identified exit to Materials 399 | -10/Materials | Entered another Materials area 399 | -9/Materials | Evolved 2 slots: Utility x2 677 | -9/Materials | Core integrity fell below 50% 722 | -9/Materials | Lost 9 parts (2p1n2u4w) 887 | -9/Materials | Discovered new exit (range 10) 981 | -9/Materials | Identified exit to Materials 1039 | -9/Materials | Build established: Scavenger-Mutant 1054 | -9/Materials | Entered another Materials area 1054 | -8/Materials | Evolved 2 slots: Utility x2 1657 | -8/Materials | Discovered new exit (range 8) 1776 | -8/Materials | Identified exit to Factory 1787 | -8/Materials | Entered Factory 1787 | -7/Factory | Evolved 2 slots: Power x1, Propulsion x1 1837 | -7/Factory | Discovered new exit (range 10) 1923 | -7/Factory | Identified exit to Factory 1976 | -7/Factory | Build established: Hauler-Mutant 2034 | -7/Factory | Entered another Factory area 2034 | -6/Factory | Evolved 2 slots: Propulsion x1, Utility x1 2326 | -6/Factory | Build established: Scavenger-Mutant 2602 | -6/Factory | Spotted B-75 Beast 2685 | -6/Factory | Destroyed B-75 Beast 2755 | -6/Factory | Discovered new exit (range 6) 2784 | -6/Factory | Identified exit to Factory 2812 | -6/Factory | Entered another Factory area 2812 | -5/Factory | Evolved 2 slots: Propulsion x1, Weapon x1 3476 | -5/Factory | Found Prototype Launcher 3476 | -5/Factory | Identified Mni. Smartbomb Launcher 3482 | -5/Factory | Found Mni. Smartbomb Launcher 3505 | -5/Factory | Build established: Hauler-Mutant 3575 | -5/Factory | Discovered new exit (range 2) 3587 | -5/Factory | Identified exit to Factory 3599 | -5/Factory | Entered another Factory area 3599 | -4/Factory | Evolved 2 slots: Utility x2 3728 | -4/Factory | Lost 9 parts (4n1u4w) 4078 | -4/Factory | Discovered new exit (range 14) 4161 | -4/Factory | Identified exit to Research 4169 | -4/Factory | Entered Research 4169 | -3/Research | Evolved 2 slots: Utility x2 4547 | -3/Research | System corruption reached 10% 4935 | -3/Research | Garrison activated, responded to threat 4949 | -3/Research | Discovered new exit (range 6) 4957 | -3/Research | Identified exit to Research 4958 | -3/Research | Entered another Research area 4958 | -2/Research | Evolved 2 slots: Propulsion x1, Utility x1 5248 | -2/Research | System corruption reached 10% 5272 | -2/Research | Lost 6 parts (3u3w) 5442 | -2/Research | Discovered new exit (range 5) 5450 | -2/Research | Identified exit to Testing 5452 | -2/Research | Entered Testing 5960 | -2/Testing | Garrison activated, responded to threat 6034 | -2/Testing | Found Prototype Device 6034 | -2/Testing | Identified Exp. Shock Absorption System 6123 | -2/Testing | Spotted Striker 6123 | -2/Testing | Spotted Striker 6145 | -2/Testing | Destroyed Striker 6152 | -2/Testing | Destroyed Striker 6179 | -2/Testing | Spotted Alpha 7 6210 | -2/Testing | Scanned by Researcher 6248 | -2/Testing | Core integrity fell below 50% 6253 | -2/Testing | Core integrity fell below 20% 6256 | -2/Testing | Destroyed by G-73 Enforcer with Phase Gun Last Messages --------------- 06248_ Penetrated by Slug. 06248_ Slug penetrates H-88 Terminator. 06248_ Slug penetrates Earth. 06249_ Penetrated by Slug. 06249_ G-73 Enforcer suffers critical hit. 06249_ Penetrated by Slug. 06251_ Lrg. Storage Unit destroyed. 06251_ Penetrated by Slug. 06251_ Imp. Core Analyzer destroyed. 06251_ Held in stasis. 06251_ C-65 Expert is analyzing... 06251_ Penetrated by Slug. 06252_ Lrg. Storage Unit destroyed. 06252_ G-73 Enforcer destroyed. 06253_ Penetrated by Slug. 06254_ Lrg. Storage Unit destroyed. 06254_ Penetrated by Slug. 06254_ Slug penetrates G-73 Enforcer. 06255_ Held in stasis. 06255_ C-65 Expert is analyzing... Map ----- +----------------------------------------------------+ | | | | | | | | | | | | | | | | | | | | | | | ????????????????????????#########? | | ????????????????????????# #? | | ??????????????########### """ #? | | ??????????????# ##!""" [#? | | ??????????????# """##|="" #? | | ??????????????# ! """##=* ## | | ??????????????# """## """! ]## | | ??????????????# ! ##=%""%[ / | | ??########???## ] """##!!%!=!=## | | ??#""""""#?#### !/ """##*|*! !!## | | ??#""&"""## ##*% """##==*%[[*#? | | ??#"" ""# ### % #######+##? | | ??#"" # ####/########## #? | | ??#"" !%hg !%=g #? | | ??#" %=@hg * ! T +? | | ??#" Y 7# g####### " # #? | | ??#"""c!%####?##??# """ ######? | | ??##### [#????????# G #?????? | | ??????####????????# """ #?????? | | ??????????????????# " ####### | | ??????????????????# | | ??????????????????# | | ??????????????????######### ### | | ??????????????????????????# #?? | | ??????????????????????????# #?? | | ??????????????????????????# #?? | | ??????????????????????????# #?? | | ??????????????????????????# #?? | | ??????????????????????????# #?? | | ??????????????????????????# #?? | | ????????????????????????### #?? | | ????????????????????????#!# #?? | | ????????????????########### #?? | | ??????????????### """ """ # #?? | | ??????????????#"" """ """!# #?? | | ??????????????#"" """ """!# #?? | | ??????????????#"T =# #?? | | ??????????????#"" + #?? | | ??????????????#"" = # #?? | +----------------------------------------------------+ Best States ------------- Heat Dissipation 70 Coolant Potential 100 Energy Generation 61 Energy Capacity 1030 Matter Stores 300 Matter Capacity 300 Sight Range 16 Robot Scan Range 20 Terrain Scan Density 10 Power Amplification 40 Armor Coverage 1200 Resistance: KI 25 Resistance: EM 25 Core Shielding 30 Thermal Conversion 90 Evasion (%) 50 Target Analysis 8 Core Analysis 8 Recoil Reduction 6 Particle Charging 20 Stasis Canceling 2 Item Schematics ----------------- Lgt. Treads | -9/Materials | Scanalyzed Robot Schematics ------------------ None Fabricated ------------ Nothing Alien Tech Used ----------------- None Achievements -------------- Rockin' Loadout Challenges ------------ None Game ------ Seed GatlingMissileDesublimator Manual? 0 Play Time 02:25:19 Cumulative 71.9 hours Start 2021.03.07 @ 18:32:17 End 2021.03.08 @ 04:55:41 Sessions 3 Manual Loads 0 Difficulty Rogue Special Mode None Game No. 82 Rogue 82 Adventurer 0 Explorer 0 Win Type - Total 0 Types 0/0/0/0/0/0/0/0/0 Lore% 30 Gallery% 44 Achievement% 29 Wizard Run 0 Options --------- ASCII 0 Keyboard 0 Movement Mouse Keybinds 0 Fullscreen 1 Font 20/SmallcapsGlow Map View 66x50 Tactical HUD 1 Map Filters NONE Filters NONE Steam 1 RUN: 1ebcbeff-d5eb-4a39-b9fd-403e5f6c68c8